[Event "Late-Titled-Tuesday-Blitz-June-25-2024"]
[Site "Chess.com"]
[Date "2024.06.25"]
[Round "1"]
[White "Dexter_Dyke"]
[Black "nihalsarin"]
[Result "0-1"]
[WhiteElo "2521"]
[BlackElo "3097"]
[TimeControl "180+1"]
[EndTime "14:04:50 PDT"]
[Termination "nihalsarin won by resignation"]

1. e4 {[%clk 0:03:00]} 1... a6 {[%clk 0:03:00.9]} 2. d4 {[%clk 0:02:59.7]} 2...
c6 {[%clk 0:03:01.8]} 3. Bd3 {[%clk 0:02:59.6]} 3... d5 {[%clk 0:03:02.7]} 4.
Nf3 {[%clk 0:02:54.9]} 4... Bg4 {[%clk 0:03:02.5]} 5. exd5 {[%clk 0:02:53.5]}
5... cxd5 {[%clk 0:03:02.9]} 6. O-O {[%clk 0:02:53.4]} 6... Nc6 {[%clk
0:03:03.1]} 7. c3 {[%clk 0:02:53.7]} 7... e6 {[%clk 0:03:03.5]} 8. h3 {[%clk
0:02:54]} 8... Bh5 {[%clk 0:03:03.6]} 9. Nbd2 {[%clk 0:02:52.1]} 9... Bd6 {[%clk
0:03:03.9]} 10. Re1 {[%clk 0:02:51.6]} 10... Nf6 {[%clk 0:03:04.3]} 11. Nf1
{[%clk 0:02:44.2]} 11... O-O {[%clk 0:03:04.3]} 12. Bg5 {[%clk 0:02:44]} 12...
Rc8 {[%clk 0:03:03.4]} 13. Ng3 {[%clk 0:02:43.6]} 13... Bg6 {[%clk 0:03:03.4]}
14. Bxg6 {[%clk 0:02:41.3]} 14... hxg6 {[%clk 0:03:04.3]} 15. Ne5 {[%clk
0:02:40.7]} 15... Qc7 {[%clk 0:03:04.7]} 16. Nxc6 {[%clk 0:02:32]} 16... Qxc6
{[%clk 0:03:04.7]} 17. Bxf6 {[%clk 0:02:29.2]} 17... gxf6 {[%clk 0:03:05.6]} 18.
Qg4 {[%clk 0:02:26.1]} 18... Qc7 {[%clk 0:03:05]} 19. Re2 {[%clk 0:02:19.2]}
19... f5 {[%clk 0:03:00]} 20. Qg5 {[%clk 0:02:16.5]} 20... Bf4 {[%clk
0:03:00.4]} 21. Qh4 {[%clk 0:02:10.9]} 21... Kg7 {[%clk 0:03:00.1]} 22. Re5
{[%clk 0:01:57.2]} 22... Bxe5 {[%clk 0:02:50.8]} 23. dxe5 {[%clk 0:01:57.3]}
23... Qxe5 {[%clk 0:02:51.7]} 24. Qb4 {[%clk 0:01:53.6]} 24... b5 {[%clk
0:02:48.7]} 25. Qa5 {[%clk 0:01:42.7]} 25... d4 {[%clk 0:02:47.4]} 26. cxd4
{[%clk 0:01:36]} 26... Qxd4 {[%clk 0:02:48.3]} 27. Qxa6 {[%clk 0:01:36.3]} 27...
Qxb2 {[%clk 0:02:47]} 28. Rf1 {[%clk 0:01:36.2]} 28... Ra8 {[%clk 0:02:45.1]}
29. Qd6 {[%clk 0:01:30.8]} 29... Rxa2 {[%clk 0:02:46]} 30. h4 {[%clk 0:01:10.9]}
30... Rh8 {[%clk 0:02:45.2]} 31. h5 {[%clk 0:01:10.5]} 31... gxh5 {[%clk
0:02:46.1]} 32. Qf4 {[%clk 0:01:10.1]} 32... Qf6 {[%clk 0:02:43.7]} 33. Rd1
{[%clk 0:01:03.1]} 33... Ra1 {[%clk 0:02:43.1]} 34. Rxa1 {[%clk 0:00:58.6]}
34... Qxa1+ {[%clk 0:02:44]} 35. Kh2 {[%clk 0:00:59.5]} 35... Qf6 {[%clk
0:02:44.9]} 36. Ne2 {[%clk 0:00:56.3]} 36... h4 {[%clk 0:02:40.2]} 37. Qb4
{[%clk 0:00:49.6]} 37... Qe5+ {[%clk 0:02:38.5]} 38. Nf4 {[%clk 0:00:49.8]}
38... Rc8 {[%clk 0:02:38.5]} 39. g3 {[%clk 0:00:47]} 39... hxg3+ {[%clk
0:02:38]} 40. fxg3 {[%clk 0:00:46.8]} 40... Rh8+ {[%clk 0:02:37.6]} 41. Kg1
{[%clk 0:00:42.5]} 41... Qe3+ {[%clk 0:02:37.6]} 42. Kg2 {[%clk 0:00:41]} 42...
Qe4+ {[%clk 0:02:37.7]} 43. Qxe4 {[%clk 0:00:41.6]} 43... fxe4 {[%clk
0:02:38.6]} 44. Ne2 {[%clk 0:00:40.7]} 44... b4 {[%clk 0:02:38.5]} 45. Nd4
{[%clk 0:00:40.6]} 45... Rc8 {[%clk 0:02:37.5]} 46. Kh3 {[%clk 0:00:39.6]} 46...
Rc4 {[%clk 0:02:36.5]} 0-1

[Event "Late-Titled-Tuesday-Blitz-June-25-2024"]
[Site "Chess.com"]
[Date "2024.06.25"]
[Round "1"]
[White "rychessmaster1"]
[Black "PapaieDudu"]
[Result "1-0"]
[WhiteElo "2795"]
[BlackElo "2460"]
[TimeControl "180+1"]
[EndTime "14:04:53 PDT"]
[Termination "rychessmaster1 won by resignation"]

1. d4 {[%clk 0:03:00.3]} 1... d5 {[%clk 0:03:00.4]} 2. Nc3 {[%clk 0:02:59.4]}
2... Nf6 {[%clk 0:03:00.3]} 3. Bf4 {[%clk 0:03:00]} 3... e6 {[%clk 0:02:56.8]}
4. Nb5 {[%clk 0:03:00]} 4... Na6 {[%clk 0:02:56.8]} 5. e3 {[%clk 0:03:00.4]}
5... Bb4+ {[%clk 0:02:53.7]} 6. c3 {[%clk 0:03:00]} 6... Be7 {[%clk 0:02:53.4]}
7. a4 {[%clk 0:02:59.8]} 7... O-O {[%clk 0:02:53.4]} 8. Nf3 {[%clk 0:02:59.5]}
8... c6 {[%clk 0:02:53.1]} 9. Na3 {[%clk 0:02:59.9]} 9... b6 {[%clk 0:02:52.9]}
10. Ne5 {[%clk 0:02:55.8]} 10... Qe8 {[%clk 0:02:46.9]} 11. Bd3 {[%clk
0:02:48.8]} 11... Bb7 {[%clk 0:02:46.2]} 12. O-O {[%clk 0:02:42.8]} 12... Rc8
{[%clk 0:02:45.5]} 13. h3 {[%clk 0:02:40.3]} 13... Nd7 {[%clk 0:02:41.7]} 14.
Qh5 {[%clk 0:02:32.7]} 14... g6 {[%clk 0:02:39.6]} 15. Qe2 {[%clk 0:02:31.7]}
15... Bf6 {[%clk 0:02:36.2]} 16. Bxa6 {[%clk 0:02:29.4]} 16... Bxa6 {[%clk
0:02:35.5]} 17. Qxa6 {[%clk 0:02:30.3]} 17... Bxe5 {[%clk 0:02:34.7]} 18. Bxe5
{[%clk 0:02:29.2]} 18... f6 {[%clk 0:02:34.9]} 19. Bg3 {[%clk 0:02:03.4]} 19...
Rf7 {[%clk 0:02:31.6]} 20. c4 {[%clk 0:02:00.4]} 20... c5 {[%clk 0:02:30.9]} 21.
cxd5 {[%clk 0:01:58.3]} 21... exd5 {[%clk 0:02:30.9]} 22. Nb5 {[%clk 0:01:52.4]}
22... Qe6 {[%clk 0:02:28.6]} 23. Nd6 {[%clk 0:01:51.2]} 23... Rcf8 {[%clk
0:02:23.5]} 24. Nxf7 {[%clk 0:01:51.4]} 24... Rxf7 {[%clk 0:02:23.9]} 25. dxc5
{[%clk 0:01:50]} 25... Nxc5 {[%clk 0:02:23.6]} 26. Qb5 {[%clk 0:01:49.7]} 26...
Ne4 {[%clk 0:02:24.1]} 27. Rad1 {[%clk 0:01:40.5]} 27... g5 {[%clk 0:02:22]} 28.
Qxd5 {[%clk 0:01:39.9]} 28... Qxd5 {[%clk 0:02:21.7]} 29. Rxd5 {[%clk
0:01:40.8]} 29... f5 {[%clk 0:02:21]} 30. Rc1 {[%clk 0:01:39]} 30... f4 {[%clk
0:02:19.9]} 31. exf4 {[%clk 0:01:39.3]} 31... gxf4 {[%clk 0:02:20.8]} 32. Bh4
{[%clk 0:01:36.2]} 32... Kg7 {[%clk 0:02:20.6]} 33. Re5 {[%clk 0:01:34.1]} 33...
Nc5 {[%clk 0:02:19.9]} 34. Re7 {[%clk 0:01:33.8]} 34... Nd3 {[%clk 0:02:18.1]}
35. Rcc7 {[%clk 0:01:32.8]} 35... Rxe7 {[%clk 0:02:18.2]} 36. Rxe7+ {[%clk
0:01:33.7]} 36... Kg6 {[%clk 0:02:19]} 37. Rxa7 {[%clk 0:01:34.6]} 37... Nxb2
{[%clk 0:02:18.7]} 38. Bd8 {[%clk 0:01:34]} 38... f3 {[%clk 0:02:17.8]} 39. Bxb6
{[%clk 0:01:33.4]} 39... Nd3 {[%clk 0:02:17.5]} 40. Be3 {[%clk 0:01:32.8]} 40...
fxg2 {[%clk 0:02:16.7]} 41. Kxg2 {[%clk 0:01:33.7]} 41... Ne1+ {[%clk
0:02:16.8]} 42. Kg3 {[%clk 0:01:34.3]} 42... Nd3 {[%clk 0:02:16.6]} 43. a5
{[%clk 0:01:32.9]} 43... h5 {[%clk 0:02:17.1]} 44. h4 {[%clk 0:01:32.9]} 44...
Kf5 {[%clk 0:02:17.4]} 45. Ra8 {[%clk 0:01:32.9]} 45... Ne1 {[%clk 0:02:16.1]}
46. a6 {[%clk 0:01:31.4]} 46... Ke4 {[%clk 0:02:16.2]} 47. a7 {[%clk 0:01:31.3]}
47... Kd3 {[%clk 0:02:17.1]} 48. Bb6 {[%clk 0:01:28.6]} 48... Ke2 {[%clk
0:02:17.3]} 49. Ba5 {[%clk 0:01:29]} 49... Nd3 {[%clk 0:02:16.9]} 50. Re8+
{[%clk 0:01:28.9]} 50... Kf1 {[%clk 0:02:17]} 51. Bb6 {[%clk 0:01:22.8]} 51...
Kg1 {[%clk 0:02:13.8]} 52. f3+ {[%clk 0:01:19.2]} 52... Kh1 {[%clk 0:02:10.4]}
53. a8=R {[%clk 0:01:11.9]} 1-0

[Event "Late-Titled-Tuesday-Blitz-June-25-2024"]
[Site "Chess.com"]
[Date "2024.06.25"]
[Round "1"]
[White "ukchessbomber"]
[Black "jamengrand"]
[Result "1-0"]
[WhiteElo "2620"]
[BlackElo "2317"]
[TimeControl "180+1"]
[EndTime "14:04:57 PDT"]
[Termination "ukchessbomber won by resignation"]

1. b4 {[%clk 0:02:58.9]} 1... e5 {[%clk 0:02:56.2]} 2. Bb2 {[%clk 0:02:58.7]}
2... Bxb4 {[%clk 0:02:54.8]} 3. Bxe5 {[%clk 0:02:58.4]} 3... Nf6 {[%clk
0:02:54.7]} 4. e3 {[%clk 0:02:57.2]} 4... O-O {[%clk 0:02:53.7]} 5. c3 {[%clk
0:02:56.7]} 5... Ba5 {[%clk 0:02:51.6]} 6. Bxf6 {[%clk 0:02:55.7]} 6... Qxf6
{[%clk 0:02:50.7]} 7. d4 {[%clk 0:02:55.3]} 7... Re8 {[%clk 0:02:40.5]} 8. Ne2
{[%clk 0:02:47.5]} 8... Nc6 {[%clk 0:02:37]} 9. Nd2 {[%clk 0:02:42.9]} 9... d5
{[%clk 0:02:31.3]} 10. g3 {[%clk 0:02:42.5]} 10... Bg4 {[%clk 0:02:26.4]} 11.
Bg2 {[%clk 0:02:42.1]} 11... Bxc3 {[%clk 0:02:26.1]} 12. Rc1 {[%clk 0:02:39.2]}
12... Bxe2 {[%clk 0:02:25.6]} 13. Qxe2 {[%clk 0:02:36.7]} 13... Nxd4 {[%clk
0:02:16.9]} 14. Qd3 {[%clk 0:02:36.8]} 14... Bxd2+ {[%clk 0:02:04]} 15. Qxd2
{[%clk 0:02:37.7]} 15... Nf3+ {[%clk 0:02:03.9]} 16. Bxf3 {[%clk 0:02:38.2]}
16... Qxf3 {[%clk 0:02:04.2]} 17. O-O {[%clk 0:02:39.1]} 17... c6 {[%clk
0:02:02.6]} 18. Rb1 {[%clk 0:02:38.8]} 18... Re7 {[%clk 0:02:02.1]} 19. Qb4
{[%clk 0:02:37.8]} 19... Rae8 {[%clk 0:02:00.8]} 20. Qd6 {[%clk 0:02:38.3]}
20... Qf6 {[%clk 0:01:58.4]} 21. Qa3 {[%clk 0:02:36.5]} 21... a6 {[%clk
0:01:55.6]} 22. Rb2 {[%clk 0:02:36]} 22... h5 {[%clk 0:01:49]} 23. Rfb1 {[%clk
0:02:35.6]} 23... h4 {[%clk 0:01:27.4]} 24. Rxb7 {[%clk 0:02:36]} 24... Rxb7
{[%clk 0:01:27.2]} 25. Rxb7 {[%clk 0:02:36.9]} 25... d4 {[%clk 0:01:19.6]} 26.
exd4 {[%clk 0:01:52.5]} 26... Re1+ {[%clk 0:00:43.6]} 27. Kg2 {[%clk 0:01:52.1]}
27... Re2 {[%clk 0:00:43.8]} 28. Rb8+ {[%clk 0:01:43.5]} 28... Kh7 {[%clk
0:00:43.6]} 29. Qd3+ {[%clk 0:01:44.1]} 1-0

[Event "Late-Titled-Tuesday-Blitz-June-25-2024"]
[Site "Chess.com"]
[Date "2024.06.25"]
[Round "1"]
[White "pooh2012"]
[Black "ritanovikova"]
[Result "1-0"]
[WhiteElo "2603"]
[BlackElo "2256"]
[TimeControl "180+1"]
[EndTime "14:04:57 PDT"]
[Termination "pooh2012 won on time"]

1. d4 {[%clk 0:02:58.8]} 1... e6 {[%clk 0:02:57.6]} 2. c4 {[%clk 0:02:59.1]}
2... d5 {[%clk 0:01:15.7]} 3. Nc3 {[%clk 0:02:32.9]} 3... Bb4 {[%clk 0:00:35.5]}
4. Nf3 {[%clk 0:02:07.1]} 4... Nf6 {[%clk 0:00:33]} 5. cxd5 {[%clk 0:02:04.7]}
5... exd5 {[%clk 0:00:31.1]} 6. Qa4+ {[%clk 0:02:01.7]} 6... Nc6 {[%clk
0:00:30.6]} 7. Ne5 {[%clk 0:02:00.7]} 7... Bd7 {[%clk 0:00:21.1]} 8. Nxd7 {[%clk
0:01:54.6]} 8... Qxd7 {[%clk 0:00:20]} 9. e3 {[%clk 0:01:48.6]} 9... Ne4 {[%clk
0:00:18.1]} 10. Qc2 {[%clk 0:01:45]} 10... Nxc3 {[%clk 0:00:17.5]} 11. bxc3
{[%clk 0:01:44.2]} 11... Bd6 {[%clk 0:00:17.7]} 12. Bd3 {[%clk 0:01:42.4]} 12...
O-O-O {[%clk 0:00:15.6]} 13. Bf5 {[%clk 0:01:42.1]} 1-0

[Event "Late-Titled-Tuesday-Blitz-June-25-2024"]
[Site "Chess.com"]
[Date "2024.06.25"]
[Round "1"]
[White "ReinisUz"]
[Black "zimmm36"]
[Result "0-1"]
[WhiteElo "2433"]
[BlackElo "2732"]
[TimeControl "180+1"]
[EndTime "14:05:02 PDT"]
[Termination "zimmm36 won by checkmate"]

1. c4 {[%clk 0:02:59.4]} 1... e6 {[%clk 0:02:51.5]} 2. Nc3 {[%clk 0:02:58.4]}
2... d5 {[%clk 0:02:52.4]} 3. d4 {[%clk 0:02:57.2]} 3... Nf6 {[%clk 0:02:52.1]}
4. cxd5 {[%clk 0:02:57.6]} 4... Nxd5 {[%clk 0:02:52.7]} 5. e4 {[%clk 0:02:56.5]}
5... Nxc3 {[%clk 0:02:52.9]} 6. bxc3 {[%clk 0:02:57.4]} 6... c5 {[%clk
0:02:53.5]} 7. Nf3 {[%clk 0:02:53.4]} 7... cxd4 {[%clk 0:02:53.4]} 8. cxd4
{[%clk 0:02:53.4]} 8... Bb4+ {[%clk 0:02:54]} 9. Bd2 {[%clk 0:02:53]} 9... Bxd2+
{[%clk 0:02:54.6]} 10. Qxd2 {[%clk 0:02:53.1]} 10... O-O {[%clk 0:02:55.5]} 11.
Be2 {[%clk 0:02:50.4]} 11... b6 {[%clk 0:02:53.8]} 12. O-O {[%clk 0:02:49.3]}
12... Bb7 {[%clk 0:02:54.1]} 13. Qe3 {[%clk 0:02:48.1]} 13... Nd7 {[%clk
0:02:54.5]} 14. Rfc1 {[%clk 0:02:44.5]} 14... Rc8 {[%clk 0:02:54]} 15. Rxc8
{[%clk 0:02:43.3]} 15... Qxc8 {[%clk 0:02:54.9]} 16. Rc1 {[%clk 0:02:43.3]}
16... Qb8 {[%clk 0:02:54.3]} 17. Bb5 {[%clk 0:02:28]} 17... Nf6 {[%clk
0:02:51.5]} 18. Bc6 {[%clk 0:02:25.3]} 18... Rc8 {[%clk 0:02:50.4]} 19. Bxb7
{[%clk 0:02:22.9]} 19... Qxb7 {[%clk 0:02:49.7]} 20. Rxc8+ {[%clk 0:02:20.9]}
20... Qxc8 {[%clk 0:02:50.6]} 21. h3 {[%clk 0:02:21]} 21... h6 {[%clk
0:02:49.8]} 22. Qd3 {[%clk 0:01:57.4]} 22... Qc1+ {[%clk 0:02:48.1]} 23. Kh2
{[%clk 0:01:55.6]} 23... Qf4+ {[%clk 0:02:47.3]} 24. Kg1 {[%clk 0:01:52.2]}
24... Qxe4 {[%clk 0:02:46.7]} 25. Qa6 {[%clk 0:01:46.7]} 25... Qb1+ {[%clk
0:02:35.6]} 26. Kh2 {[%clk 0:01:42.9]} 26... Ne4 {[%clk 0:02:35.4]} 27. Qxa7
{[%clk 0:01:36.2]} 27... Nxf2 {[%clk 0:02:32.9]} 28. Ne5 {[%clk 0:01:32.3]}
28... Qf5 {[%clk 0:02:28.1]} 29. Qxb6 {[%clk 0:01:23.7]} 29... Ne4 {[%clk
0:02:26]} 30. a4 {[%clk 0:01:02.8]} 30... Qf4+ {[%clk 0:02:24.7]} 31. Kg1 {[%clk
0:01:03.1]} 31... Ng3 {[%clk 0:02:19.5]} 32. Qb8+ {[%clk 0:00:52.2]} 32... Kh7
{[%clk 0:02:18.9]} 33. Qb1+ {[%clk 0:00:44.1]} 33... f5 {[%clk 0:02:16.7]} 34.
Qb2 {[%clk 0:00:42.5]} 34... Qe3+ {[%clk 0:02:13.8]} 35. Qf2 {[%clk 0:00:21.5]}
35... Qc1+ {[%clk 0:02:12.7]} 36. Kh2 {[%clk 0:00:19.4]} 36... f4 {[%clk
0:02:12.4]} 37. a5 {[%clk 0:00:14.5]} 37... Qh1# {[%clk 0:02:11.6]} 0-1

[Event "Late-Titled-Tuesday-Blitz-June-25-2024"]
[Site "Chess.com"]
[Date "2024.06.25"]
[Round "1"]
[White "AlexKhripachenko"]
[Black "czasnaszachy"]
[Result "1/2-1/2"]
[WhiteElo "2817"]
[BlackElo "2483"]
[TimeControl "180+1"]
[EndTime "14:05:05 PDT"]
[Termination "Game drawn by repetition"]

1. e4 {[%clk 0:02:55.9]} 1... e5 {[%clk 0:02:58.6]} 2. Nf3 {[%clk 0:02:55.7]}
2... Nc6 {[%clk 0:02:58.6]} 3. Bb5 {[%clk 0:02:56]} 3... a6 {[%clk 0:02:58]} 4.
Ba4 {[%clk 0:02:56.4]} 4... Nf6 {[%clk 0:02:58.1]} 5. O-O {[%clk 0:02:56.5]}
5... Be7 {[%clk 0:02:57.9]} 6. Re1 {[%clk 0:02:56.6]} 6... b5 {[%clk 0:02:58.1]}
7. Bb3 {[%clk 0:02:56.5]} 7... d6 {[%clk 0:02:58.6]} 8. c3 {[%clk 0:02:54.4]}
8... O-O {[%clk 0:02:58.5]} 9. h3 {[%clk 0:02:54.7]} 9... Na5 {[%clk 0:02:58.3]}
10. Bc2 {[%clk 0:02:54.9]} 10... c5 {[%clk 0:02:58.7]} 11. d4 {[%clk 0:02:55.7]}
11... Qc7 {[%clk 0:02:58.1]} 12. d5 {[%clk 0:02:56.2]} 12... Bd7 {[%clk
0:02:56.4]} 13. b3 {[%clk 0:02:56.3]} 13... c4 {[%clk 0:02:50.8]} 14. b4 {[%clk
0:02:56.2]} 14... Nb7 {[%clk 0:02:50.9]} 15. a4 {[%clk 0:02:50.7]} 15... a5
{[%clk 0:02:49.4]} 16. axb5 {[%clk 0:02:40.8]} 16... axb4 {[%clk 0:02:48.9]} 17.
Rxa8 {[%clk 0:02:40.2]} 17... Rxa8 {[%clk 0:02:48.7]} 18. cxb4 {[%clk
0:02:41.1]} 18... Bxb5 {[%clk 0:02:44]} 19. Nc3 {[%clk 0:02:41.2]} 19... Be8
{[%clk 0:02:28]} 20. Be3 {[%clk 0:02:40.7]} 20... Nd7 {[%clk 0:02:23.5]} 21. Qc1
{[%clk 0:02:31.1]} 21... Nb8 {[%clk 0:02:06]} 22. Qb2 {[%clk 0:02:29.7]} 22...
Bd8 {[%clk 0:01:57]} 23. Nd2 {[%clk 0:02:28.6]} 23... h6 {[%clk 0:01:42.4]} 24.
Bd1 {[%clk 0:02:24]} 24... Bg5 {[%clk 0:01:42]} 25. Bxg5 {[%clk 0:02:22.1]}
25... hxg5 {[%clk 0:01:42]} 26. Be2 {[%clk 0:02:23]} 26... Nd7 {[%clk
0:01:36.2]} 27. Nxc4 {[%clk 0:02:19.6]} 27... Nb6 {[%clk 0:01:33.1]} 28. Nxb6
{[%clk 0:02:19.3]} 28... Qxb6 {[%clk 0:01:32.9]} 29. b5 {[%clk 0:01:56.5]} 29...
Nc5 {[%clk 0:01:25.5]} 30. Ra1 {[%clk 0:01:55.2]} 30... Rxa1+ {[%clk 0:01:17.6]}
31. Qxa1 {[%clk 0:01:56.1]} 31... Nb3 {[%clk 0:01:16.5]} 32. Qa8 {[%clk
0:01:53.9]} 32... Kf8 {[%clk 0:01:13.5]} 33. Qa6 {[%clk 0:01:53.5]} 33... Qd4
{[%clk 0:01:09.5]} 34. Qxd6+ {[%clk 0:01:53.1]} 34... Kg8 {[%clk 0:01:08.6]} 35.
Qd8 {[%clk 0:01:49.6]} 35... Qxc3 {[%clk 0:01:02]} 36. Qxe8+ {[%clk 0:01:49.2]}
36... Kh7 {[%clk 0:01:02.5]} 37. Bh5 {[%clk 0:01:48]} 37... Qc1+ {[%clk
0:00:54.7]} 38. Kh2 {[%clk 0:01:48.1]} 38... Qf4+ {[%clk 0:00:54.7]} 39. Kg1
{[%clk 0:01:43.9]} 39... Qc1+ {[%clk 0:00:54.6]} 40. Kh2 {[%clk 0:01:44.3]}
40... Qf4+ {[%clk 0:00:54.5]} 41. Kg1 {[%clk 0:01:44.9]} 41... Qc1+ {[%clk
0:00:54.6]} 1/2-1/2

[Event "Late-Titled-Tuesday-Blitz-June-25-2024"]
[Site "Chess.com"]
[Date "2024.06.25"]
[Round "1"]
[White "schondeln"]
[Black "MaestroCheck"]
[Result "1-0"]
[WhiteElo "2385"]
[BlackElo "2636"]
[TimeControl "180+1"]
[EndTime "14:05:09 PDT"]
[Termination "schondeln won by checkmate"]

1. e4 {[%clk 0:02:59.2]} 1... c5 {[%clk 0:02:59.1]} 2. Nf3 {[%clk 0:02:58.8]}
2... e6 {[%clk 0:02:59.7]} 3. c3 {[%clk 0:02:57.4]} 3... Nf6 {[%clk 0:03:00]} 4.
e5 {[%clk 0:02:57]} 4... Nd5 {[%clk 0:03:00.6]} 5. g3 {[%clk 0:02:57.6]} 5... d6
{[%clk 0:02:56.7]} 6. exd6 {[%clk 0:02:58.5]} 6... Bxd6 {[%clk 0:02:56]} 7. Bg2
{[%clk 0:02:58.5]} 7... Nc6 {[%clk 0:02:54.4]} 8. O-O {[%clk 0:02:58.4]} 8...
O-O {[%clk 0:02:53.3]} 9. d4 {[%clk 0:02:58.4]} 9... cxd4 {[%clk 0:02:52.9]} 10.
Nxd4 {[%clk 0:02:59.3]} 10... Bd7 {[%clk 0:02:51.4]} 11. Nb5 {[%clk 0:02:10.3]}
11... Bc5 {[%clk 0:02:45.4]} 12. c4 {[%clk 0:02:08.6]} 12... Nde7 {[%clk
0:02:45.1]} 13. N1c3 {[%clk 0:02:04.8]} 13... a6 {[%clk 0:02:41.9]} 14. Nd6
{[%clk 0:02:04]} 14... Qc7 {[%clk 0:02:41.5]} 15. Nde4 {[%clk 0:01:58.1]} 15...
Bd4 {[%clk 0:02:41.2]} 16. Bf4 {[%clk 0:01:46.6]} 16... e5 {[%clk 0:02:39.2]}
17. Nd5 {[%clk 0:01:32.7]} 17... Nxd5 {[%clk 0:02:30.4]} 18. cxd5 {[%clk
0:01:33.6]} 18... Nb4 {[%clk 0:02:30.5]} 19. Qxd4 {[%clk 0:01:31.8]} 19... Nc2
{[%clk 0:02:22.3]} 20. Bxe5 {[%clk 0:01:15]} 20... Qd8 {[%clk 0:02:13.9]} 21.
Qd2 {[%clk 0:01:08.7]} 21... Nxa1 {[%clk 0:02:14]} 22. Rxa1 {[%clk 0:01:05]}
22... Bf5 {[%clk 0:02:12.2]} 23. Bc3 {[%clk 0:01:03.2]} 23... f6 {[%clk
0:02:07.5]} 24. d6 {[%clk 0:01:00.3]} 24... Kh8 {[%clk 0:02:04.1]} 25. Qd5
{[%clk 0:00:59.7]} 25... Bg6 {[%clk 0:02:03.5]} 26. Nc5 {[%clk 0:00:58.1]} 26...
Bf7 {[%clk 0:02:03.6]} 27. Qd4 {[%clk 0:00:45.4]} 27... b6 {[%clk 0:02:02.2]}
28. Ne4 {[%clk 0:00:43.8]} 28... Rc8 {[%clk 0:01:58.8]} 29. Rd1 {[%clk
0:00:43.2]} 29... Bxa2 {[%clk 0:01:57.7]} 30. d7 {[%clk 0:00:40.3]} 30... Rc4
{[%clk 0:01:55.6]} 31. Qd6 {[%clk 0:00:37.3]} 31... Bb3 {[%clk 0:01:52.9]} 32.
Rd4 {[%clk 0:00:35.6]} 32... Rxd4 {[%clk 0:01:52.1]} 33. Bxd4 {[%clk 0:00:36.5]}
33... Ba4 {[%clk 0:01:52.1]} 34. Bxb6 {[%clk 0:00:32.6]} 34... Qxd7 {[%clk
0:01:42.6]} 35. Qxf8# {[%clk 0:00:31.2]} 1-0

[Event "Late-Titled-Tuesday-Blitz-June-25-2024"]
[Site "Chess.com"]
[Date "2024.06.25"]
[Round "1"]
[White "Crasyhealer"]
[Black "legendisback1"]
[Result "0-1"]
[WhiteElo "2512"]
[BlackElo "3009"]
[TimeControl "180+1"]
[EndTime "14:05:13 PDT"]
[Termination "legendisback1 won by checkmate"]

1. d4 {[%clk 0:03:00.9]} 1... g6 {[%clk 0:02:59.6]} 2. c4 {[%clk 0:03:00.2]}
2... Bg7 {[%clk 0:02:59]} 3. Nc3 {[%clk 0:03:00.7]} 3... d6 {[%clk 0:02:57.8]}
4. h4 {[%clk 0:02:58.2]} 4... h6 {[%clk 0:02:54.1]} 5. e4 {[%clk 0:02:54.8]}
5... Nd7 {[%clk 0:02:49]} 6. Be3 {[%clk 0:02:54.6]} 6... c5 {[%clk 0:02:45.1]}
7. Nf3 {[%clk 0:02:51]} 7... Ngf6 {[%clk 0:02:39.1]} 8. Qd2 {[%clk 0:02:46.4]}
8... Ng4 {[%clk 0:02:38.6]} 9. O-O-O {[%clk 0:02:44.8]} 9... O-O {[%clk
0:02:23.4]} 10. Be2 {[%clk 0:01:49.4]} 10... Nxe3 {[%clk 0:02:21.5]} 11. fxe3
{[%clk 0:01:49.5]} 11... b6 {[%clk 0:02:17.7]} 12. g4 {[%clk 0:01:45.6]} 12...
Bb7 {[%clk 0:02:17.4]} 13. Rhf1 {[%clk 0:01:41.1]} 13... Rc8 {[%clk 0:02:16.6]}
14. d5 {[%clk 0:01:40.1]} 14... a6 {[%clk 0:01:48]} 15. h5 {[%clk 0:01:31.7]}
15... g5 {[%clk 0:01:46.9]} 16. e5 {[%clk 0:01:31.9]} 16... Nxe5 {[%clk
0:01:44.3]} 17. Nxe5 {[%clk 0:01:32.1]} 17... Bxe5 {[%clk 0:01:45.2]} 18. Bd3
{[%clk 0:01:27.6]} 18... b5 {[%clk 0:01:20.4]} 19. cxb5 {[%clk 0:01:23.4]} 19...
c4 {[%clk 0:01:19.8]} 20. Bb1 {[%clk 0:01:21]} 20... Qb6 {[%clk 0:01:03.9]} 21.
Na4 {[%clk 0:00:55.7]} 21... c3 {[%clk 0:00:50.1]} 22. Nxb6 {[%clk 0:00:54.2]}
22... cxb2# {[%clk 0:00:50.1]} 0-1

[Event "Late-Titled-Tuesday-Blitz-June-25-2024"]
[Site "Chess.com"]
[Date "2024.06.25"]
[Round "1"]
[White "merinasian"]
[Black "purpurice"]
[Result "0-1"]
[WhiteElo "2386"]
[BlackElo "2673"]
[TimeControl "180+1"]
[EndTime "14:05:16 PDT"]
[Termination "purpurice won by resignation"]

1. d4 {[%clk 0:02:59.2]} 1... Nf6 {[%clk 0:03:00.2]} 2. Nf3 {[%clk 0:02:59]}
2... g6 {[%clk 0:03:00.5]} 3. Bf4 {[%clk 0:02:58.3]} 3... Bg7 {[%clk 0:03:00.8]}
4. e3 {[%clk 0:02:58.5]} 4... O-O {[%clk 0:03:01.3]} 5. h3 {[%clk 0:02:58.6]}
5... d5 {[%clk 0:03:01.3]} 6. Be2 {[%clk 0:02:58.4]} 6... c5 {[%clk 0:03:01.6]}
7. O-O {[%clk 0:02:58.3]} 7... Nc6 {[%clk 0:03:02.1]} 8. c3 {[%clk 0:02:57]}
8... Ne4 {[%clk 0:03:01.5]} 9. Nbd2 {[%clk 0:02:55.9]} 9... Bf5 {[%clk
0:02:59.6]} 10. Nxe4 {[%clk 0:02:54.9]} 10... Bxe4 {[%clk 0:03:00.5]} 11. Nd2
{[%clk 0:02:54.7]} 11... cxd4 {[%clk 0:02:58.1]} 12. Nxe4 {[%clk 0:02:53.2]}
12... dxe4 {[%clk 0:02:55.6]} 13. cxd4 {[%clk 0:02:47.1]} 13... Qb6 {[%clk
0:02:49.8]} 14. Qb3 {[%clk 0:02:35.4]} 14... e5 {[%clk 0:02:44.8]} 15. Qxb6
{[%clk 0:02:25.3]} 15... axb6 {[%clk 0:02:45.7]} 16. dxe5 {[%clk 0:02:25.2]}
16... Nxe5 {[%clk 0:02:44.4]} 17. a3 {[%clk 0:02:13.5]} 17... Rac8 {[%clk
0:02:22.1]} 18. Rac1 {[%clk 0:02:11.3]} 18... Nd3 {[%clk 0:02:20.7]} 19. Bxd3
{[%clk 0:02:07.9]} 19... exd3 {[%clk 0:02:21.6]} 20. Rxc8 {[%clk 0:01:59.3]}
20... Rxc8 {[%clk 0:02:22.5]} 21. Rd1 {[%clk 0:01:59.2]} 21... Rd8 {[%clk
0:02:16.5]} 22. Bc7 {[%clk 0:01:59.1]} 22... Rd7 {[%clk 0:02:16.9]} 23. Bxb6
{[%clk 0:01:59.3]} 23... Bxb2 {[%clk 0:02:17.6]} 24. Bd4 {[%clk 0:01:59.4]}
24... Bxa3 {[%clk 0:02:00.1]} 25. Rxd3 {[%clk 0:01:59.3]} 25... Be7 {[%clk
0:01:50]} 26. Rb3 {[%clk 0:01:55.1]} 26... f5 {[%clk 0:01:48.4]} 27. Kf1 {[%clk
0:01:50.6]} 27... Kf7 {[%clk 0:01:48.7]} 28. Ke2 {[%clk 0:01:50.5]} 28... Ke6
{[%clk 0:01:48.2]} 29. Kd3 {[%clk 0:01:45]} 29... Bd6 {[%clk 0:01:48.7]} 30. Rb2
{[%clk 0:01:34.7]} 30... Kd5 {[%clk 0:01:45.7]} 31. Rb5+ {[%clk 0:01:33.4]}
31... Kc6 {[%clk 0:01:46.2]} 32. Rb6+ {[%clk 0:01:33.6]} 32... Kc7 {[%clk
0:01:46.8]} 33. Kc4 {[%clk 0:01:31.2]} 33... Be7 {[%clk 0:01:31.7]} 34. Re6
{[%clk 0:01:27.8]} 34... Bd6 {[%clk 0:01:30.5]} 35. Kb5 {[%clk 0:01:24.1]} 35...
Rf7 {[%clk 0:01:15.5]} 36. Bb6+ {[%clk 0:01:19.9]} 36... Kd7 {[%clk 0:01:15.8]}
0-1